fUST/lending_fUST_20250928
["ID","MTS","AMOUNT","RATE_DAILY","PERIOD"]
[388072246,1759003833010,-500.0,0.00024682,2]
[388072247,1759003833020,-500.0,0.00024682,2]
[388072248,1759003833028,-500.0,0.00024682,2]
[388072249,1759003833038,-500.0,0.00024682,2]
[388072250,1759003833047,-500.0,0.00024682,2]
[388072251,1759003833056,-524.90430778,0.00024682,2]
[388072252,1759003833065,-500.0,0.00024682,2]
[388072253,1759003833075,-500.0,0.00024682,2]
[388072254,1759003833084,-500.0,0.00024682,2]
[388072255,1759003833094,-300.0,0.00024683,2]
[388072256,1759003833103,-1200.0,0.00024683,2]
[388072257,1759003833112,-264.22142342,0.00024684,2]
[388072258,1759003833122,-804.0,0.00024684,2]
[388072259,1759003833131,-30058.40075029,0.00024685,2]
[388072278,1759003838858,-456.96266117,0.00024689,2]
[388072279,1759003838870,-43.03733883,0.00024689,2]
[388072280,1759003838879,-500.0,0.00024689,2]
[388072281,1759003838889,-157.26618734,0.000248,2]
[388072282,1759003838898,-5252.50050343,0.00024813,2]
[388072283,1759003838909,-1579.13616557,0.00024813,2]
[388072284,1759003838919,-867.0929532,0.0002494,2]
[388072285,1759003838929,-165.649326,0.00026966,20]
[388072286,1759003838939,-160.443,0.00027264,16]
[388072287,1759003838948,-2724.31619524,0.00027387,2]
[388072288,1759003838969,-4107.32047376,0.00027387,2]
[388072289,1759003838978,-867.0929532,0.00027576,2]
[388072290,1759003838988,-6831.636669,0.00029961,2]
[388072291,1759003838997,-1000.0,0.00029961,30]
[388072292,1759003839008,-867.0929532,0.00030212,2]
[388072293,1759003839018,-43648.1745911,0.00030674,2]
[388072294,1759003839028,-2674.49165091,0.00030674,2]
[388072295,1759003839037,-2834.7016616,0.00030684,2]
[388072296,1759003839046,-8108.9612675,0.00030684,2]
[388072297,1759003839056,-500.0,0.00030684,2]
[388072298,1759003839065,-326.53,0.00030847,2]
[388072299,1759003839074,-1000.0,0.0003122,14]
[388072300,1759003839084,-6831.636669,0.00032534,2]
[388072301,1759003839093,-867.0929532,0.00032848,2]
[388072302,1759003839103,-501.750813,0.00032877,2]
[388072303,1759003839112,-189.3309625,0.0003325,30]
[388072304,1759003839122,-151.0,0.0003325,30]
[388072305,1759003839131,-500.0,0.0003325,30]
[388072306,1759003839141,-151.81729377,0.0003325,10]
[388072307,1759003839150,-500.0,0.0003325,30]
[388072308,1759003839160,-151.0,0.0003325,30]
[388072309,1759003839170,-500.0,0.0003325,41]
[388072310,1759003839179,-500.0,0.0003325,10]
[388072311,1759003839189,-500.0,0.0003325,10]
[388072312,1759003839199,-500.0,0.0003325,10]
[388072313,1759003839208,-500.0,0.0003325,10]
[388072314,1759003839218,-166.28049624,0.0003325,10]
[388072315,1759003839228,-500.0,0.0003325,10]
[388072316,1759003839238,-500.0,0.0003325,10]
[388072317,1759003839247,-500.0,0.0003325,10]
[388072318,1759003839257,-17300.0,0.0003325,30]
[388072319,1759003839267,-154.03,0.00033256,3]
[388072320,1759003839276,-462.13,0.00033256,3]
[388072321,1759003839285,-1491.0,0.0003345,2]
[388072322,1759003839294,-1491.0,0.0003345,2]
[388072323,1759003839303,-1491.0,0.0003345,2]
[388072324,1759003839314,-1491.0,0.0003345,2]
[388072325,1759003839324,-1491.0,0.0003345,2]
[388072326,1759003839334,-519.26763241,0.00033773,2]
[388072327,1759003839343,-4956.54869265,0.00033773,2]
[388072328,1759003839353,-81052.45841537,0.0003387,2]
[388072355,1759003840670,-76579.9366582,0.0003387,2]
[388072389,1759003843864,-594.29495577,0.0003387,2]
[388072390,1759003843875,-2239.81929005,0.0003387,2]
[388072391,1759003843886,-1022.66213513,0.0003387,2]
[388072392,1759003843897,-863.25999999,0.0003387,2]
[388072393,1759003843908,-810.59189696,0.0003387,2]
[388072395,1759003844218,-17757.17577152,0.0003387,2]
[388072396,1759003844229,-7776.70087273,0.0003387,2]
[388072413,1759003846799,-50277.92621576,0.0003387,2]
[388072420,1759003846853,-668.03421671,0.0003387,2]
[388072426,1759003846907,-1870.93916665,0.0003387,2]
[388072428,1759003846919,-20375.24795116,0.0003387,2]
[388072430,1759003846928,-2611.09951724,0.0003387,2]
[388072432,1759003846940,-650.998744,0.0003387,2]
[388072504,1759004612007,-1000.0,0.00032182,30]
[388072505,1759004612029,-155.44912711,0.00033,90]
[388072506,1759004612047,-160.443,0.00033145,34]
[388072507,1759004612067,-2107.37413033,0.00033252,60]
[388072508,1759004612084,-189.1051805,0.00034247,30]
[388072509,1759004612102,-586.5092015,0.00034247,30]
[388072510,1759004612119,-488.91484129,0.00035068,120]
[388072511,1759004612137,-47737.19357423,0.0003543,30]
[388072512,1759004612157,-189.3309625,0.00035615,30]
[388072513,1759004612193,-500.0,0.00035616,90]
[388072514,1759004612230,-189.3309625,0.0003579,30]
[388072515,1759004612252,-151.0,0.00035873,30]
[388072516,1759004612276,-151.0,0.00035873,30]
[388072517,1759004612298,-151.0,0.00035873,30]
[388072518,1759004612320,-151.0,0.00035873,30]
[388072519,1759004612341,-204.90934614,0.00035873,30]
[388072520,1759004612370,-151.0,0.0003589,30]
[388072521,1759004612397,-500.0,0.0003589,90]
[388072522,1759004612426,-151.0,0.0003589,30]
[388072523,1759004612453,-151.0,0.0003589,30]
[388072524,1759004612476,-151.0,0.0003589,30]
[388072525,1759004612501,-216.204047,0.0003589,30]
[388072526,1759004612524,-216.204047,0.0003589,30]
[388072527,1759004612548,-216.204047,0.0003589,30]
[388072528,1759004612570,-216.204043,0.0003589,30]
[388072529,1759004612596,-151.0,0.0003589,30]
[388072530,1759004612627,-151.0,0.0003589,30]
[388072531,1759004612659,-151.0,0.0003589,30]
[388072532,1759004612682,-305.43627,0.0003589,30]
[388072533,1759004612705,-305.43627,0.0003589,30]
[388072534,1759004612728,-305.43627,0.0003589,30]
[388072535,1759004612750,-305.436274,0.0003589,30]
[388072536,1759004612773,-151.0,0.0003589,30]
[388072537,1759004612796,-279.770685,0.0003589,30]
[388072538,1759004612821,-233.76631357,0.00036164,30]
[388072539,1759004612867,-500.0,0.00036164,90]
[388072540,1759004612930,-500.0,0.00036438,90]
[388072541,1759004612980,-500.0,0.00036712,90]
[388072542,1759004613046,-500.0,0.00036986,90]
[388072543,1759004613114,-5000.0,0.00037,120]
[388072544,1759004613150,-711.76742168,0.00037,120]
[388072545,1759004613187,-151.0,0.00037007,30]
[388072546,1759004613231,-500.0,0.0003726,90]
[388072547,1759004613297,-500.0,0.00037534,90]
[388072548,1759004613353,-506.12936763,0.00037731,30]
[388072549,1759004613396,-511.62993574,0.00037808,90]
[388072550,1759004613447,-201.0,0.0003782,47]
[388072551,1759004613475,-2272.74600022,0.00038,30]
[388072552,1759004613506,-200.0,0.00038,120]
[388072553,1759004613533,-153.00518881,0.00038,120]
[388072554,1759004613568,-153.00518881,0.00038,120]
[388072555,1759004613597,-153.00518881,0.00038,120]
[388072556,1759004613628,-153.00518881,0.00038,120]
[388072557,1759004613657,-153.00518881,0.00038,120]
[388072558,1759004613687,-153.00518881,0.00038,120]
[388072559,1759004613717,-153.00518881,0.00038,120]
[388072560,1759004613747,-153.00518881,0.00038,120]
[388072561,1759004613804,-151.0,0.00038106,30]
[388072562,1759004613832,-153.00518881,0.00038256,120]
[388072563,1759004613951,-1636.51268398,0.00039,120]
[388072564,1759004613988,-6000.0,0.00039,60]
[388072565,1759004614019,-5000.0,0.00039,120]
[388072566,1759004614048,-233.76631357,0.00039,120]
[388072567,1759004614077,-189.3309625,0.00039,120]
[388072568,1759004614128,-151.0,0.00039204,30]
[388072569,1759004614175,-219.1,0.0003955,30]
[388072570,1759004614224,-219.1,0.00039894,30]
[388072571,1759004614252,-10983.02292089,0.0003999,120]
[388072572,1759004614280,-500.0,0.00039999,31]
[388072573,1759004614308,-444.44751121,0.00039999,31]
[388072574,1759004614335,-247.46633081,0.00039999,31]
[388072575,1759004614365,-380.84039282,0.00039999,31]
[388072576,1759004614393,-200.0,0.0004,120]
[388072577,1759004614419,-901092.43486699,0.0004,120]
[388072578,1759004625471,-151.0,0.0003589,30]
[388072579,1759004625745,-999849.0,0.0004,120]
[388072580,1759004630157,-344241.26009353,0.0004,120]
[388072581,1759004630181,-655758.73990647,0.0004,120]
[388072582,1759004634475,-172.963238,0.0003589,30]
[388072583,1759004634500,-172.963238,0.0003589,30]
[388072584,1759004634524,-172.963238,0.0003589,30]
[388072585,1759004634786,-638561.53911998,0.0004,120]
[388072586,1759004634810,-51911.15536345,0.0004,30]
[388072587,1759004634836,-189.3309625,0.0004,30]
[388072588,1759004634872,-189.3309625,0.0004,120]
[388072589,1759004634899,-219.1,0.00040238,30]
[388072590,1759004634936,-151.0,0.00040303,30]
[388072591,1759004634972,-219.1,0.00040582,30]
[388072592,1759004634996,-893.9157479,0.0004063,30]
[388072593,1759004635032,-219.1,0.00040926,30]
[388072594,1759004635065,-500.0,0.00041095,120]
[388072595,1759004635093,-169.0950664,0.00041096,120]
[388072596,1759004635117,-189.3309625,0.000412,120]
[388072597,1759004635140,-219.1,0.0004127,120]
[388072598,1759004635174,-500.0,0.00041369,120]
[388072599,1759004635201,-151.0,0.00041401,120]
[388072600,1759004635225,-219.1,0.00041614,120]
[388072601,1759004635257,-500.0,0.00041643,120]
[388072602,1759004635285,-200.0,0.00041745,120]
[388072603,1759004635316,-200.0,0.00041761,120]
[388072604,1759004635347,-500.0,0.00041917,120]
[388072605,1759004635378,-219.1,0.00041958,120]
[388072606,1759004635402,-500.0,0.00041966,30]
[388072607,1759004635426,-200.0,0.00042,120]
[388072608,1759004635452,-500.0,0.00042191,120]
[388072609,1759004635475,-219.1,0.00042302,120]
[388072610,1759004635499,-500.0,0.00042465,120]
[388072611,1759004635523,-2000.0,0.000425,32]
[388072612,1759004635545,-151.0,0.000425,120]
[388072613,1759004635569,-219.1,0.00042646,120]
[388072614,1759004635594,-500.0,0.00042739,120]
[388072615,1759004635617,-219.1,0.0004299,120]
[388072616,1759004635640,-1500.0,0.00043,120]
[388072617,1759004635663,-296852.51210077,0.00043,120]
[388072618,1759004641783,-172.96323,0.0003589,30]
[388072619,1759004642104,-189.3309625,0.0004,120]
[388072620,1759004642128,-189.3309625,0.0004,30]
[388072621,1759004642208,-189.3309625,0.000412,120]
[388072622,1759004642231,-189.3309625,0.000412,30]
[388072623,1759004642299,-503147.48789824,0.00043,120]
[388072624,1759004642324,-500.0,0.00043013,120]
[388072625,1759004642350,-500.0,0.00043287,120]
[388072626,1759004642376,-219.1,0.00043334,120]
[388072627,1759004642401,-65556.65165836,0.000435,120]
[388072628,1759004642424,-2000.0,0.000435,34]
[388072629,1759004642450,-500.0,0.00043561,120]
[388072630,1759004642474,-219.1,0.00043678,120]
[388072631,1759004642499,-4588.0,0.00043685,120]
[388072632,1759004642524,-510.0,0.000438,90]
[388072633,1759004642548,-1000.0,0.00043835,120]
[388072634,1759004642572,-1000.0,0.00043835,120]
[388072635,1759004642597,-1000.0,0.00043835,120]
[388072636,1759004642622,-1000.0,0.00043835,120]
[388072637,1759004642647,-1000.0,0.00043835,120]
[388072638,1759004642687,-874.660001,0.00043835,120]
[388072639,1759004642715,-480.0,0.00043835,120]
[388072640,1759004642739,-480.0,0.00043835,120]
[388072641,1759004642762,-1000.0,0.00043835,120]
[388072642,1759004642785,-1000.0,0.00043835,120]
[388072643,1759004642808,-1000.0,0.00043835,120]
[388072644,1759004642832,-1000.0,0.00043835,120]
[388072645,1759004642856,-663.57095232,0.00043835,120]
[388072646,1759004642879,-480.0,0.00043835,120]
[388072647,1759004642903,-480.0,0.00043835,120]
[388072648,1759004642926,-960.0,0.00043835,120]
[388072649,1759004642950,-540.86,0.00043835,120]
[388072650,1759004642974,-500.0,0.00043835,120]
[388072651,1759004642997,-976.61365638,0.000439,120]
[388072652,1759004643026,-200.0,0.00044,120]
[388072653,1759004643049,-219.1,0.00044022,120]
[388072654,1759004643073,-500.0,0.00044109,120]
[388072655,1759004643096,-500.0,0.00044175,30]
[388072656,1759004643119,-219.1,0.00044366,120]
[388072657,1759004643144,-500.0,0.00044383,120]
[388072658,1759004643167,-2935.7941592,0.000445,120]
[388072659,1759004643190,-1084.0,0.000445,36]
[388072660,1759004643214,-500.0,0.00044657,120]
[388072661,1759004643237,-215.44455251,0.00044666,60]
[388072662,1759004643259,-219.1,0.0004471,120]
[388072663,1759004643282,-202.45027097,0.0004493,120]
[388072664,1759004643309,-500.0,0.00044931,120]
[388072665,1759004643332,-213.5739895,0.00045,30]
[388072666,1759004643355,-2000.0,0.00045,120]
[388072667,1759004643377,-2945.18985631,0.000452,30]
[388072668,1759004643402,-500.0,0.00045205,120]
[388072669,1759004643425,-500.0,0.00045479,120]
[388072670,1759004643450,-500.0,0.00045753,120]
[388072671,1759004643475,-200.0,0.00046,120]
[388072672,1759004643500,-500.0,0.00046027,120]
[388072673,1759004643524,-444.87565181,0.00046301,120]
[388072674,1759004643547,-500.0,0.00046399,41]
[388072675,1759004643570,-498.58851262,0.00046499,120]
[388072676,1759004643593,-250.0,0.00046499,120]
[388072677,1759004643616,-500.0,0.00046499,120]
[388072678,1759004643639,-500.0,0.000465,30]
[388072679,1759004643663,-500.0,0.000465,30]
[388072680,1759004643697,-350.0,0.00046574,120]
[388072681,1759004643725,-250.0,0.00046574,120]
[388072682,1759004643751,-500.0,0.00046574,120]
[388072683,1759004644425,189.3309625,0.000424,120]
[388072684,1759004648709,533.82556626,0.00037,120]
[388072685,1759004651416,151.0,0.0003589,30]
[388072687,1759004816096,-220.65314496,0.000253,2]
[388072688,1759004816118,-165.649326,0.00026966,20]
[388072689,1759004816139,-476.663272,0.00032877,2]
[388072690,1759004816161,-500.0,0.00033052,7]
[388072691,1759004816181,-157.78569752,0.00033052,7]
[388072692,1759004816201,-174.94435288,0.00033052,7]
[388072693,1759004816224,-500.0,0.00033052,7]
[388072694,1759004816243,-20.84389341,0.00033052,7]
[388072913,1759004920414,1100.0,0.000245,5]
[388072914,1759004922382,4250.5155696,0.0002465,2]
[388072915,1759004960128,-300.0,0.00028987,2]
[388072916,1759004960150,-500.0,0.00028988,2]
[388072917,1759004960170,-648.58991857,0.00028988,2]
[388072918,1759004960192,-500.0,0.00028988,2]
[388072919,1759004960214,-500.0,0.00028988,2]
[388072920,1759004960235,-500.0,0.00028988,2]
[388072921,1759004960255,-527.56353542,0.00028988,2]
[388072922,1759004960276,-500.0,0.00028988,2]
[388072923,1759004960296,-500.0,0.00028988,2]
[388072924,1759004960317,-500.0,0.00028988,2]
[388072925,1759004960336,-500.0,0.00028988,2]
[388072926,1759004960358,-500.0,0.00028988,2]
[388072927,1759004960379,-500.0,0.00028988,2]
[388072928,1759004960400,-207.5240639,0.00028988,2]
[388072929,1759004960425,-582.85148863,0.00028988,2]
[388072930,1759004960445,-500.0,0.00028988,2]
[388072931,1759004960465,-336.91967733,0.00028988,2]
[388072932,1759004960484,-500.0,0.00028988,2]
[388072933,1759004960504,-6118.00547707,0.00028989,2]
[388072934,1759004960523,-1057.84070991,0.0003,5]
[388072935,1759004960544,-420.0,0.00031274,2]
[388072936,1759004960564,-468.30124631,0.00032,60]
[388072939,1759004977272,4649.4944304,0.00022362,2]
[388072940,1759004977296,350.5055696,0.00022362,2]
[388073130,1759005037882,-165.649325,0.00026966,20]
[388073131,1759005037891,-1200.0,0.00028861,2]
[388073132,1759005037901,-5000.0,0.00028862,2]
[388073133,1759005037911,-300.0,0.00028987,2]
[388073134,1759005037923,-500.0,0.00028988,2]
[388073135,1759005037932,-500.0,0.00028988,2]
[388073136,1759005037941,-500.0,0.00028988,2]
[388073137,1759005037951,-500.0,0.00028988,2]
[388073138,1759005037960,-550.0,0.00028988,2]
[388073139,1759005037970,-500.0,0.00028988,2]
[388073140,1759005037979,-500.0,0.00028988,2]
[388073141,1759005037988,-500.0,0.00028988,2]
[388073142,1759005037998,-500.0,0.00028988,2]
[388073143,1759005038007,-168.0,0.00031243,2]
[388073144,1759005038016,-420.0,0.00031274,2]
[388073145,1759005038026,-1680.0,0.00031276,3]
[388073146,1759005038035,-531.69875369,0.00032,60]
[388073147,1759005038045,-168.0,0.00032803,2]
[388073148,1759005038055,-320.34271321,0.00033053,7]
[388073150,1759005038065,-190.47750481,0.00033053,7]
[388073152,1759005038074,-639.53982828,0.000331,2]
[388073154,1759005038083,-160.0,0.00033142,2]
[388073156,1759005038093,-10000.0,0.000332,60]
[388073158,1759005038102,-189.3309625,0.00033252,7]
[388073160,1759005038111,-2107.37413033,0.00033252,60]
[388073161,1759005038121,-4164.63206195,0.00033262,2]
[388073162,1759005038130,-368.8391937,0.00033262,2]
[388073163,1759005038139,-1180.38,0.00033275,2]
[388073164,1759005038149,-1180.38,0.00033275,2]
[388073165,1759005038158,-1180.38,0.00033275,2]
[388073166,1759005038168,-1180.38,0.00033275,2]
[388073167,1759005038177,-1180.38,0.00033275,2]
[388073168,1759005038187,-946.5784227,0.00033282,2]
[388073169,1759005038196,-2213.0752353,0.00033282,2]
[388073170,1759005038206,-171.54,0.00033352,3]
[388073171,1759005038215,-514.67,0.00033352,3]
[388073172,1759005038225,-168.0,0.00033354,2]
[388073173,1759005038235,-160.0,0.00033362,7]
[388073174,1759005038244,-500.0,0.00033362,7]
[388073175,1759005038254,-88790.56836708,0.00033362,7]
[388073176,1759005038263,-7920.83576183,0.00033362,2]
[388073177,1759005038273,-13000.0,0.00033362,7]
[388073178,1759005038282,-91283.49357504,0.00033362,2]
[388073179,1759005038292,-300.0,0.00033362,2]
[388073180,1759005038301,-3882.73654418,0.00033362,2]
[388073181,1759005038311,-809.96302409,0.00033362,2]
[388073182,1759005038320,-258.28408775,0.00033362,2]
[388073183,1759005038329,-296.97300396,0.00033362,2]
[388073184,1759005038339,-327.11359133,0.00033362,2]
[388073185,1759005038349,-291.94107424,0.00033362,2]
[388073186,1759005038358,-51753.86847042,0.00033362,2]
[388073187,1759005038368,-637.44118038,0.00033362,2]
[388073188,1759005038378,-1362.26820816,0.00033362,2]
[388073189,1759005038388,-156.66903588,0.00033362,2]
[388073190,1759005038397,-375.87799197,0.00033362,2]
[388073191,1759005038407,-83911.9355927,0.00033362,2]
[388073192,1759005038416,-6295.86485753,0.00033362,2]
[388073193,1759005038425,-157.6792694,0.00033362,2]
[388073194,1759005038435,-616.5195758,0.00033362,2]
[388073195,1759005038444,-1717.45149075,0.00033362,2]
[388073196,1759005038454,-2076.56451878,0.00033362,2]
[388073197,1759005038464,-276.8200578,0.00033362,2]
[388073198,1759005038473,-507.74729944,0.00033362,2]
[388073199,1759005038483,-179.35609289,0.00033362,2]
[388073200,1759005038493,-468.00301122,0.00033362,2]
[388073201,1759005038650,-189.22979494,0.00033362,2]
[388073202,1759005038707,-1397.31875854,0.00033362,2]
[388073203,1759005038717,-5896.44414982,0.00033362,2]
[388073204,1759005038726,-651.39901302,0.00033362,2]
[388073205,1759005038735,-12116.88619757,0.00033362,2]
[388073206,1759005038745,-166.70576063,0.00033362,2]
[388073207,1759005038755,-168.0,0.00033372,2]
[388073208,1759005038765,-272.70811018,0.000334,5]
[388073209,1759005038775,-500.0,0.00033636,7]
[388073210,1759005038784,-587.0,0.00033742,2]
[388073211,1759005038794,-275.31,0.00033869,3]
[388073212,1759005038803,-1180.38,0.00033879,2]
[388073213,1759005038813,-1180.38,0.00033879,2]
[388073214,1759005038823,-1180.38,0.00033879,2]
[388073215,1759005038832,-1180.38,0.00033879,2]
[388073216,1759005038842,-1180.38,0.00033879,2]
[388073217,1759005038851,-1180.38,0.00033879,2]
[388073218,1759005038861,-1180.38,0.00033879,2]
[388073219,1759005038871,-1180.38,0.00033879,2]
[388073220,1759005038880,-1180.38,0.00033879,2]
[388073221,1759005038889,-1180.38,0.00033879,2]
[388073222,1759005038899,-1180.38,0.00033879,2]
[388073223,1759005038908,-1180.38,0.00033879,2]
[388073224,1759005038918,-1180.38,0.00033879,2]
[388073225,1759005038927,-1180.38,0.00033879,2]
[388073226,1759005038937,-1180.38,0.00033879,2]
[388073227,1759005038948,-1180.38,0.00033879,2]
[388073228,1759005038958,-1180.38,0.00033879,2]
[388073229,1759005038969,-1180.38,0.00033879,2]
[388073230,1759005038979,-1180.3858164,0.00033879,2]
[388073231,1759005038989,-2351.0,0.00033894,3]
[388073232,1759005038999,-555.73582448,0.0003399,2]
[388073233,1759005039010,-639.53982821,0.00034032,2]
[388073234,1759005039020,-189.3309625,0.000342,7]
[388073235,1759005039030,-4164.63206193,0.00034389,2]
[388073236,1759005039041,-481.86091051,0.0003446,2]
[388073237,1759005039051,-156.0,0.00034577,7]
[388073238,1759005039061,-155.53405102,0.00034577,7]
[388073239,1759005039071,-772.78211307,0.00034716,2]
[388073240,1759005039081,-343.08,0.00034722,3]
[388073241,1759005039091,-459.81962276,0.0003477,2]
[388073242,1759005039101,-233.76631357,0.00034772,2]
[388073243,1759005039112,-189.3309625,0.00034772,2]
[388073244,1759005039122,-150.0,0.00034809,2]
[388073245,1759005039131,-262724.907078,0.00034838,2]
[388073246,1759005039141,-19107.8423254,0.00034838,2]
[388073247,1759005039151,-550.62,0.00034838,3]
[388073248,1759005039162,-370000.0,0.00034848,2]
[388073249,1759005039172,-2388.48029067,0.00034863,2]
[388073250,1759005039182,-25000.0,0.0003487,7]
[388073251,1759005039192,-500.0,0.00034873,5]
[388073252,1759005039201,-500.0,0.00034873,5]
[388073253,1759005039211,-500.0,0.00034873,5]
[388073254,1759005039222,-500.0,0.00034873,5]
[388073255,1759005039232,-500.0,0.00034873,3]
[388073256,1759005039242,-357.2568059,0.00034873,5]
[388073257,1759005039252,-979.0,0.00034948,2]
[388073258,1759005039262,-410.0,0.00034948,2]
[388073259,1759005039272,-635.0,0.00034948,2]
[388073260,1759005039282,-2161.0,0.00034948,2]
[388073261,1759005039292,-459.81962272,0.00034957,2]
[388073262,1759005039302,-639.53982821,0.00034965,2]
[388073263,1759005039312,-10653.55436734,0.00035,2]
[388073264,1759005039322,-1820.05171074,0.00035,2]
[388073265,1759005039331,-488.91484129,0.00035068,120]
[388073266,1759005039341,-459.81962272,0.00035143,2]
[388073267,1759005039350,-4588.0,0.00035144,2]
[388073268,1759005039359,-189.3309625,0.000353,7]
[388073269,1759005039368,-459.81962272,0.0003533,2]
[388073270,1759005039378,-176.10970335,0.0003534,2]
[388073271,1759005039388,-5529.13427943,0.0003534,2]
[388073272,1759005039397,-5000.0,0.00035362,4]
[388073273,1759005039407,-151.0,0.000354,14]
[388073274,1759005039417,-151.0,0.000354,10]
[388073275,1759005039427,-308.06,0.0003542,3]
[388073276,1759005039437,-1000.0,0.00035421,5]
[388073277,1759005039447,-26273.2831974,0.0003543,3]
[388073278,1759005039457,-653785.59861616,0.0003544,2]
[388073289,1759005039703,-15455.40138384,0.0003544,2]
[388073291,1759005039712,-168.635042,0.0003544,7]
[388073293,1759005039722,-168.635042,0.0003544,7]
[388073295,1759005039732,-168.635042,0.0003544,7]
[388073297,1759005039741,-154.665594,0.0003544,7]
[388073299,1759005039751,-168.635042,0.0003544,7]
[388073301,1759005039761,-151.103867,0.0003544,7]
[388073303,1759005039770,-151.0,0.0003544,7]
[388073305,1759005039780,-151.0,0.0003544,7]
[388073307,1759005039789,-151.0,0.0003544,7]
[388073309,1759005039799,-151.0,0.0003544,7]
[388073311,1759005039809,-151.0,0.0003544,7]
[388073313,1759005039818,-151.0,0.0003544,7]
[388073315,1759005039827,-151.0,0.0003544,7]
[388073317,1759005039836,-173.592111,0.0003544,7]
[388073319,1759005039846,-151.0,0.0003544,7]
[388073321,1759005039855,-151.0,0.0003544,7]
[388073323,1759005039864,-151.0,0.0003544,7]
[388073325,1759005039874,-226.257754,0.0003544,7]
[388073327,1759005039883,-151.0,0.0003544,7]
[388073329,1759005039893,-151.0,0.0003544,7]
[388073331,1759005039903,-216.204047,0.0003544,7]
[388073333,1759005039912,-151.865945,0.0003544,7]
[388073335,1759005039922,-216.204047,0.0003544,7]
[388073337,1759005039931,-216.204047,0.0003544,7]
[388073339,1759005039940,-297.450623,0.0003544,7]
[388073341,1759005039950,-216.204047,0.0003544,7]
[388073343,1759005039960,-151.0,0.0003544,7]
[388073345,1759005039969,-151.0,0.0003544,7]
[388073347,1759005039981,-151.0,0.0003544,7]
[388073349,1759005039991,-151.0,0.0003544,7]
[388073351,1759005040000,-151.0,0.0003544,7]
[388073353,1759005040009,-151.0,0.0003544,7]
[388073355,1759005040019,-151.0,0.0003544,7]
[388073357,1759005040028,-151.0,0.0003544,7]
[388073359,1759005040038,-151.0,0.0003544,7]
[388073360,1759005040047,-151.0,0.0003544,7]
[388073362,1759005040056,-459.81962272,0.00035516,2]
[388073363,1759005040066,-4164.63206193,0.00035516,2]
[388073364,1759005040081,-480.0,0.00035616,9]
[388073366,1759005040094,-480.0,0.00035616,9]
[388073368,1759005040104,-480.0,0.00035616,9]
[388073370,1759005040113,-566.5,0.00035616,9]
[388073372,1759005040122,-480.0,0.00035616,9]
[388073374,1759005040132,-480.0,0.00035616,9]
[388073376,1759005040141,-480.0,0.00035616,9]
[388073378,1759005040150,-682.06,0.00035616,9]
[388073380,1759005040163,-480.0,0.00035616,9]
[388073382,1759005040172,-480.0,0.00035616,9]
[388073384,1759005040181,-480.0,0.00035616,9]
[388073386,1759005040190,-481.95517591,0.00035616,9]
[388073388,1759005040200,-480.0,0.00035616,9]
[388073390,1759005040209,-530.55,0.00035616,9]
[388073392,1759005040218,-480.0,0.00035616,9]
[388073394,1759005040229,-480.0,0.00035616,9]
[388073396,1759005040239,-480.0,0.00035616,9]
[388073398,1759005040248,-315.73502034,0.00035616,9]
[388073400,1759005040258,-480.0,0.00035616,9]
[388073402,1759005040267,-480.0,0.00035616,9]
[388073404,1759005040276,-480.0,0.00035616,9]
[388073406,1759005040285,-480.0,0.00035616,9]
[388073408,1759005040296,-604.43,0.00035616,9]